bitfinex-derivatives/quotes_SOLF0:USTF0_20241212
["timestamp","ask_amount","ask_price","bid_price","bid_amount"]
[1734000082522,2.08,230.11,230.0,2.08]
[1734000083029,2.08,230.11,230.01,12.89776252]
[1734000083231,5.10904646,230.13,230.0,2.08]
[1734000083232,5.6222,230.16,230.04,12.89776252]
[1734000083634,78.94716732,230.18,230.01,5.7263]
[1734000083635,2.08,230.15,230.07,12.89776252]
[1734000083831,4.2517,230.15,230.07,12.89776252]
[1734000084326,81.02716732,230.18,230.07,12.89776252]
[1734000084535,2.1718,230.14,230.1,2.1721]
[1734000090636,2.1718,230.14,230.11,2.1721]
[1734000091145,2.1718,230.14,230.12,8.22695673]
[1734000091637,2.1717,230.15,230.12,10.39885673]
[1734000091932,5.14868966,230.2,230.14,8.22695673]
[1734000092136,7.22868966,230.2,230.14,8.22695673]
[1734000092739,2.1716,230.17,230.14,10.39865673]
[1734000093140,5.5267,230.25,230.16,8.22695673]
[1734000093335,2.08,230.24,230.18,8.22695673]
[1734000093530,18.96365595,230.25,230.18,8.22695673]
[1734000093840,2.08,230.24,230.18,8.22695673]
[1734000094038,13.75365673,230.25,230.18,8.22695673]
[1734000094239,2.08,230.24,230.18,8.22695673]
[1734000094440,2.171,230.22,230.19,2.1713]
[1734000094641,2.08,230.24,230.18,8.22695673]
[1734000094939,8.22695673,230.23,230.16,8.22695673]
[1734000095532,2.1714,230.19,230.16,8.22695673]
[1734000095736,8.22695673,230.23,230.16,8.22695673]
[1734000096339,2.1713,230.19,230.16,8.22695673]
[1734000097037,2.1713,230.19,230.16,10.39855673]
[1734000097742,2.1714,230.18,230.11,5.4755]
[1734000097942,2.1714,230.18,230.15,8.22695673]
[1734000100241,2.1714,230.18,230.15,10.39865673]
[1734000100643,2.1713,230.19,230.17,8.22695673]
[1734000100842,2.08,230.24,230.17,8.22695673]
[1734000101046,2.08,230.24,230.2,8.22695673]
[1734000101446,2.1711,230.21,230.2,8.22695673]
[1734000102646,2.08,230.24,230.2,8.22695673]
[1734000102848,2.171,230.23,230.2,8.22695673]
[1734000103351,2.1708,230.24,230.2,8.22695673]
[1734000103650,8.22695673,230.27,230.19,8.22695673]
[1734000103862,10.30695673,230.27,230.19,8.22695673]
[1734000104753,8.22695673,230.25,230.11,5.4755]
[1734000104943,8.22695673,230.25,230.17,8.22695673]
[1734000105145,8.22695673,230.23,230.12,2.08]
[1734000105344,8.22695673,230.23,230.16,8.22695673]
[1734000105550,2.08,230.22,230.16,8.22695673]
[1734000105744,2.1715,230.18,230.16,8.22695673]
[1734000106853,2.1713,230.19,230.16,8.22695673]
[1734000107651,2.1713,230.19,230.16,10.39855673]
[1734000108047,2.1713,230.19,230.18,8.22695673]
[1734000108854,2.08,230.22,230.18,8.22695673]
[1734000109055,2.1712,230.2,230.18,8.22695673]
[1734000109451,2.1713,230.19,230.16,2.1716]
[1734000109651,2.1713,230.19,230.18,8.22695673]
[1734000109845,2.1713,230.19,230.16,2.1716]
[1734000110054,2.1713,230.19,230.17,8.22695673]
[1734000110956,2.1713,230.19,230.17,10.39845673]
[1734000111454,2.1712,230.2,230.17,10.39845673]
[1734000111655,2.1712,230.2,230.19,8.22695673]
[1734000113256,2.08,230.22,230.12,2.08]
[1734000113458,2.08,230.22,230.15,8.22695673]
[1734000113652,2.1716,230.17,230.15,8.22695673]
[1734000114459,2.08,230.22,230.15,8.22695673]
[1734000115561,2.1714,230.18,230.15,10.39855673]
[1734000116062,2.1714,230.18,230.11,8.22695673]
[1734000116063,2.08,230.17,230.11,8.22695673]
[1734000116365,2.08,230.17,230.09,10.39915673]
[1734000116557,2.08,230.17,230.09,8.22695673]
[1734000116759,8.22695673,230.16,230.05,0.3311]
[1734000117058,2.08,230.17,230.05,0.3311]
[1734000117059,8.22695673,230.14,230.05,0.3311]
[1734000117262,2.1724,230.08,230.05,2.5037]
[1734000117556,2.08,230.11,230.05,0.3311]
[1734000117761,2.08,230.11,230.05,8.55805673]
[1734000118857,2.08,230.11,230.05,8.22695673]
[1734000119562,2.1724,230.08,230.05,8.22695673]
[1734000120160,2.1723,230.09,230.07,8.22695673]
[1734000121263,2.1722,230.11,230.07,10.39935673]
[1734000121457,2.1722,230.11,230.1,8.22695673]
[1734000122656,2.08,230.14,230.1,8.22695673]
[1734000122862,4.2518,230.14,230.12,8.22695673]
[1734000123365,2.1717,230.15,230.12,8.22695673]
[1734000123863,2.1717,230.15,230.14,8.22695673]
[1734000125868,2.1717,230.15,230.12,8.22695673]
[1734000127169,2.08,230.17,230.1,8.22695673]
[1734000127358,10.30695673,230.17,230.1,8.22695673]
[1734000127966,2.08,230.17,230.12,8.22695673]
[1734000128366,2.1719,230.14,230.12,8.22695673]
[1734000129171,2.1719,230.13,230.12,8.22695673]
[1734000131166,10.30695673,230.17,230.03,2.08]
[1734000131369,10.30695673,230.17,230.09,8.22695673]
[1734000131775,2.1722,230.1,230.09,8.22695673]
[1734000133275,10.30695673,230.17,230.04,2.1727]
[1734000133473,8.22695673,230.13,230.05,8.22695673]
[1734000133676,2.08,230.12,230.01,5.23245013]
[1734000133876,2.08,230.12,230.04,8.22695673]
[1734000134077,8.22695673,230.11,230.04,8.22695673]
[1734000135072,2.08,230.12,230.04,8.22695673]
[1734000135475,2.08,230.12,230.06,8.22695673]
[1734000136177,2.1724,230.08,230.06,8.22695673]
[1734000137078,2.08,230.12,230.06,8.22695673]
[1734000137774,8.22695673,230.17,230.1,8.22695673]
[1734000137977,2.08,230.16,230.12,8.22695673]
[1734000138168,2.1719,230.14,230.12,8.22695673]
[1734000138370,8.22695673,230.23,230.12,8.22695673]
[1734000138670,2.08,230.22,230.17,8.22695673]
[1734000138873,2.08,230.23,230.17,8.22695673]
[1734000139075,5.21262843,230.25,230.19,8.22695673]
[1734000139273,2.08,230.24,230.19,8.22695673]
[1734000139471,2.08,230.24,230.1,5.5545]
[1734000139472,2.08,230.24,230.17,8.22695673]
[1734000139878,2.1714,230.18,230.17,8.22695673]
[1734000140179,2.1714,230.18,230.17,13.53866967]
[1734000141081,2.1712,230.21,230.17,13.53866967]
[1734000141283,2.1712,230.21,230.14,12.84835299]
[1734000141479,2.1712,230.21,230.15,5.31158617]
[1734000141680,2.1712,230.21,230.16,5.31158617]
[1734000141879,2.1712,230.21,230.17,5.31158617]
[1734000142076,2.1712,230.21,230.15,2.1716]
[1734000142281,2.1712,230.21,230.16,5.31158099]
[1734000142582,2.1712,230.21,230.17,5.31158099]
[1734000142778,2.1712,230.21,230.15,2.1716]
[1734000142975,2.1711,230.22,230.16,5.31153789]
[1734000143287,2.08,230.24,230.17,5.31153789]
[1734000143579,2.08,230.24,230.15,2.1716]
[1734000143776,2.08,230.24,230.16,5.31138706]
[1734000143976,2.08,230.24,230.17,5.31138706]
[1734000144179,2.08,230.24,230.15,2.1716]
[1734000144381,2.08,230.24,230.16,5.31124264]
[1734000144382,2.1712,230.2,230.16,5.31124264]
[1734000144588,2.1712,230.2,230.17,5.31124264]
[1734000144884,2.1712,230.2,230.14,12.84835299]
[1734000144885,2.1712,230.2,230.18,5.31124264]
[1734000145086,2.1712,230.2,230.16,2.1715]
[1734000145277,2.1712,230.2,230.17,5.31123831]
[1734000145479,2.08,230.23,230.18,5.31123831]
[1734000145685,2.08,230.23,230.14,12.84835299]
[1734000145880,2.08,230.23,230.15,5.31100277]
[1734000146077,2.08,230.23,230.14,12.84835299]
[1734000146078,2.08,230.23,230.16,5.31100277]
[1734000146277,2.08,230.23,230.17,5.31100277]
[1734000146483,2.1711,230.22,230.17,7.48250277]
[1734000146780,2.08,230.23,230.18,5.31100277]
[1734000146986,2.08,230.23,230.19,5.31100277]
[1734000147180,2.08,230.23,230.16,2.1716]
[1734000147382,2.08,230.23,230.17,5.31090742]
[1734000147681,2.1713,230.19,230.18,5.31090742]
[1734000148186,2.1719,230.14,230.1,7.7266]
[1734000148387,2.1719,230.14,230.11,5.31149604]
[1734000148688,2.1719,230.14,230.12,5.31149604]
[1734000148887,2.1719,230.14,230.1,7.7266]
[1734000148888,2.1719,230.14,230.13,5.31149604]
[1734000149386,2.1719,230.14,230.11,2.1721]
[1734000149782,2.1719,230.14,230.13,5.3129619]
[1734000150183,2.1719,230.14,230.12,5.3129619]
[1734000150385,2.1719,230.14,230.13,5.3129619]
[1734000150681,12.84835299,230.25,230.13,5.3129619]
[1734000150887,2.08,230.24,230.14,5.3129619]
[1734000151084,2.1714,230.18,230.15,5.3129619]
[1734000151283,2.1714,230.18,230.16,5.3129619]
[1734000151481,2.1714,230.18,230.15,2.1717]
[1734000151685,2.1714,230.18,230.16,5.31315921]
[1734000151880,2.1714,230.18,230.15,2.1717]
[1734000152085,2.1714,230.18,230.16,5.31315689]
[1734000152282,2.1714,230.18,230.17,5.31315689]
[1734000153685,2.08,230.21,230.17,5.31315689]
[1734000153986,2.1712,230.2,230.13,12.84835299]
[1734000154289,2.1712,230.2,230.14,5.3129232]
[1734000154588,2.1712,230.2,230.15,5.3129232]
[1734000154788,2.1712,230.2,230.16,5.3129232]
[1734000154986,2.08,230.23,230.17,5.3129232]
[1734000155184,2.08,230.23,230.16,12.84835299]
[1734000155488,2.08,230.23,230.17,5.31266902]
[1734000155688,2.08,230.23,230.18,5.31266902]
[1734000155889,4.2509,230.23,230.19,7.48386902]
[1734000156089,4.2509,230.23,230.16,12.84835299]
[1734000156291,4.2509,230.23,230.19,2.1712]
[1734000157588,4.2509,230.23,230.2,2.1711]
[1734000158180,7.08201497,230.28,230.19,2.1713]
[1734000158181,2.1711,230.22,230.19,2.1713]
[1734000158383,2.1711,230.22,230.16,12.84835299]
[1734000158581,2.1711,230.22,230.2,5.31061592]
[1734000158782,2.1711,230.21,230.2,5.31061592]
[1734000159090,2.08,230.26,230.12,2.08]
[1734000159387,2.171,230.23,230.15,2.1716]
[1734000159588,2.08,230.26,230.16,5.3104734]
[1734000159788,2.08,230.26,230.17,5.3104734]
[1734000159987,2.08,230.26,230.12,2.08]
[1734000159988,2.1714,230.19,230.18,5.3104734]
[1734000160690,4.2512,230.21,230.18,5.3104734]
[1734000160882,2.08,230.21,230.19,5.3104734]
[1734000161084,2.08,230.21,230.2,5.3104734]
[1734000162790,4.2511,230.21,230.2,5.3104734]
[1734000163185,2.1713,230.2,230.17,2.1715]
[1734000163387,2.1713,230.2,230.18,5.30914875]
[1734000163589,2.1713,230.2,230.19,5.30914875]
[1734000164591,2.1713,230.2,230.19,5.31069551]
[1734000166995,2.08,230.21,230.19,5.31069551]
[1734000166996,4.2511,230.21,230.19,5.31069551]
[1734000167197,2.08,230.21,230.2,5.31069551]
[1734000167399,2.08,230.25,230.2,5.31069551]
[1734000167695,2.08,230.25,230.21,5.31069551]
[1734000167891,80.81527092,230.3,230.12,7.20426937]
[1734000167892,80.81527092,230.3,230.22,8.22347157]
[1734000168096,80.81527092,230.3,230.23,5.31095411]
[1734000168296,2.08,230.29,230.24,5.31003773]
[1734000168495,78.89967092,230.3,230.24,8.22347157]
[1734000168698,2.08,230.29,230.24,8.22347157]
[1734000169197,4.2504,230.29,230.26,10.39407157]
[1734000169397,2.08,230.29,230.26,10.39407157]
[1734000169697,2.1706,230.27,230.23,2.1709]
[1734000169899,2.1706,230.27,230.24,13.53197113]
[1734000170193,2.1706,230.27,230.25,5.30849956]
[1734000170397,2.1706,230.27,230.24,8.22347157]
[1734000170600,2.1706,230.27,230.25,5.3074121]
[1734000170794,2.1706,230.27,230.24,8.22347157]
[1734000170996,2.1706,230.27,230.25,5.3073955]
[1734000171196,2.1706,230.27,230.24,8.22347157]
[1734000171394,2.1706,230.27,230.25,5.30622757]
[1734000171596,2.1706,230.27,230.24,8.22347157]
[1734000171796,2.1706,230.27,230.25,5.30621538]
[1734000171995,2.1706,230.27,230.24,8.22347157]
[1734000172300,2.1706,230.27,230.25,5.30504496]
[1734000172599,2.1706,230.27,230.24,8.22347157]
[1734000172898,2.1706,230.27,230.25,5.30504496]
[1734000173201,2.1706,230.27,230.24,8.22347157]
[1734000173498,2.1706,230.27,230.25,5.30463103]
[1734000173701,2.1706,230.27,230.24,8.22347157]
[1734000174799,2.08,230.31,230.24,8.22347157]
[1734000174999,2.1705,230.28,230.24,10.39427157]
[1734000176806,2.1704,230.3,230.26,8.22347157]
[1734000177006,11.93457157,230.36,230.28,8.22347157]
[1734000177197,2.1697,230.36,230.32,10.39357157]
[1734000177403,2.1697,230.36,230.32,8.22347157]
[1734000177701,2.06,230.38,230.32,8.22347157]
[1734000178101,2.1699,230.35,230.32,8.22347157]
[1734000180198,10.28347157,230.38,230.32,8.22347157]
[1734000180394,8.22347157,230.34,230.18,5.6881]
[1734000180599,8.22347157,230.32,230.26,8.22347157]
[1734000180795,8.22347157,230.32,230.24,8.22347157]
[1734000180796,10.28347157,230.32,230.24,8.22347157]
[1734000181204,10.28347157,230.32,230.25,5.30408144]
[1734000181397,10.28347157,230.32,230.24,10.39427157]
[1734000181595,10.28347157,230.32,230.25,5.30344454]
[1734000181797,10.28347157,230.32,230.24,10.39427157]
[1734000182206,10.28347157,230.32,230.25,5.30525065]
[1734000182402,10.28347157,230.32,230.26,5.30525065]
[1734000182601,10.28347157,230.32,230.27,5.30525065]
[1734000182802,10.28347157,230.32,230.24,10.39427157]
[1734000183002,2.1704,230.29,230.25,5.30526392]
[1734000183307,2.1704,230.29,230.26,5.30526392]
[1734000183506,2.1704,230.29,230.27,5.30526392]
[1734000183705,2.1704,230.29,230.24,10.39427157]
[1734000184005,2.1704,230.29,230.25,5.30577165]
[1734000184209,2.1704,230.29,230.26,5.30577165]
[1734000184403,2.1704,230.29,230.27,5.30577165]
[1734000184605,2.1704,230.29,230.26,8.22347157]
[1734000184804,2.1704,230.29,230.27,5.30538864]
[1734000185005,2.1704,230.29,230.26,8.22347157]
[1734000185207,2.1704,230.29,230.27,5.30538864]
[1734000185407,2.1704,230.29,230.26,8.22347157]
[1734000185606,2.1704,230.29,230.27,5.30493638]
[1734000185811,2.1704,230.29,230.26,8.22347157]
[1734000186103,2.1704,230.29,230.27,5.30493638]
[1734000186307,2.1704,230.29,230.26,8.22347157]
[1734000186609,2.1704,230.29,230.27,5.30459594]
[1734000186808,2.1704,230.29,230.26,8.22347157]
[1734000187009,2.1704,230.29,230.27,5.30459594]
[1734000187207,2.1704,230.29,230.26,8.22347157]
[1734000187409,2.1704,230.29,230.27,5.30424846]
[1734000187612,2.1704,230.29,230.26,8.22347157]
[1734000187910,2.1704,230.29,230.27,5.30424846]
[1734000188111,2.1704,230.29,230.26,8.22347157]
[1734000188303,2.1704,230.29,230.27,5.30398187]
[1734000188509,2.1704,230.29,230.26,8.22347157]
[1734000188703,2.06,230.32,230.28,8.22347157]
[1734000188909,5.3364698,230.39,230.3,8.22347157]
[1734000189116,2.06,230.38,230.34,8.22347157]
[1734000189305,2.1698,230.36,230.34,8.22347157]
[1734000189810,2.06,230.38,230.34,8.22347157]
[1734000190011,2.1695,230.39,230.36,8.22347157]
[1734000190404,1.8797,230.44,230.36,8.22347157]
[1734000190604,1.8797,230.44,230.38,8.22347157]
[1734000190605,2.1692,230.41,230.38,8.22347157]
[1734000191914,2.06,230.43,230.31,2.06]
[1734000192219,8.22347157,230.42,230.34,8.22347157]
[1734000193216,2.1697,230.37,230.32,2.1701]
[1734000196016,2.06,230.43,230.32,2.1701]
[1734000196210,2.1697,230.36,230.33,2.17]
[1734000199117,2.1697,230.36,230.31,2.06]
[1734000199412,2.1697,230.36,230.32,2.1701]
[1734000201711,2.06,230.43,230.31,2.06]
[1734000201915,12.83102881,230.41,230.27,5.5621]
[1734000202219,2.1703,230.3,230.26,2.1706]
[1734000202516,2.06,230.33,230.27,5.29788664]
[1734000202816,2.1705,230.28,230.24,2.1708]
[1734000203020,2.1705,230.28,230.25,5.29907201]
[1734000203318,2.1705,230.28,230.24,2.1708]
[1734000203515,2.1705,230.28,230.25,5.29980896]
[1734000203715,2.1705,230.28,230.24,2.1708]
[1734000203916,2.1704,230.29,230.25,7.47051079]
[1734000204116,2.1704,230.29,230.25,2.1707]
[1734000204523,2.06,230.31,230.23,12.83102881]
[1734000204713,2.1703,230.3,230.27,2.1706]
[1734000206219,2.06,230.31,230.28,2.1704]
[1734000209024,2.1702,230.32,230.28,2.1704]
[1734000210227,2.1702,230.32,230.27,2.1705]
[1734000210430,2.1702,230.32,230.28,5.30875745]
[1734000210627,2.1702,230.32,230.26,12.83102881]
[1734000210828,2.1702,230.32,230.28,2.1704]
[1734000211428,2.06,230.35,230.26,12.83102881]
[1734000211636,2.17,230.34,230.31,2.1702]
[1734000212627,2.17,230.34,230.32,5.31273813]
[1734000212828,2.17,230.34,230.31,2.1702]
[1734000213025,2.17,230.34,230.32,5.31272899]
[1734000213331,2.17,230.34,230.31,2.1702]
[1734000213632,4.2298,230.35,230.32,7.48385417]
[1734000213825,2.1698,230.35,230.32,2.1701]
[1734000214028,2.1698,230.35,230.33,5.31374627]
[1734000214332,2.1698,230.35,230.32,2.1701]
[1734000214523,2.1698,230.35,230.33,5.31400427]
[1734000214721,2.1698,230.35,230.32,2.1701]
[1734000215125,2.1698,230.35,230.33,13.52562961]
[1734000215327,2.1698,230.35,230.34,5.31400406]
[1734000215526,2.1698,230.35,230.34,10.62855766]
[1734000215730,2.1698,230.35,230.34,5.3145536]
[1734000215926,1.7085,230.43,230.34,5.3145536]
[1734000216131,1.7085,230.43,230.37,8.21162555]
[1734000216132,2.06,230.41,230.37,8.21162555]
[1734000216826,1.8797,230.44,230.39,8.21162555]
[1734000217024,8.21162555,230.47,230.41,8.21162555]
[1734000217227,2.06,230.46,230.41,8.21162555]
[1734000217427,2.06,230.46,230.39,8.21162555]
[1734000217632,2.1691,230.43,230.39,8.21162555]
[1734000218233,2.1692,230.42,230.39,8.21162555]
[1734000218432,8.21162555,230.45,230.37,8.21162555]
[1734000218630,8.21162555,230.45,230.38,5.31273987]
[1734000218829,2.1692,230.42,230.37,8.21162555]
[1734000219030,2.1692,230.42,230.38,5.31272726]
[1734000219233,2.1692,230.42,230.37,10.38122555]
[1734000219435,2.1692,230.42,230.38,7.48205072]
[1734000219736,2.1692,230.42,230.38,2.1695]
[1734000220437,177.07476743,230.55,230.41,8.21162555]
[1734000220632,177.07476743,230.55,230.38,2.06]
[1734000220633,2.06,230.5,230.46,8.21162555]
[1734000220837,2.06,230.5,230.38,2.06]
[1734000220838,5.27756175,230.52,230.47,8.21162555]
[1734000221041,2.06,230.51,230.47,8.21162555]
[1734000221237,5.27756175,230.52,230.47,8.21162555]
[1734000221543,2.06,230.51,230.47,8.21162555]
[1734000222637,2.1685,230.49,230.47,8.21162555]
[1734000223042,2.1685,230.49,230.45,10.38052555]
[1734000223242,2.1685,230.49,230.45,2.1689]
[1734000224146,2.1685,230.49,230.39,5.3999]
[1734000224147,5.23765208,230.55,230.44,12.81708411]
[1734000224345,2.06,230.54,230.44,12.81708411]
[1734000224738,2.06,230.55,230.47,12.81708411]
[1734000225142,2.1682,230.52,230.46,2.1687]
[1734000225338,2.06,230.55,230.46,2.1687]
[1734000226142,2.06,230.55,230.41,14.87708411]
[1734000226836,2.06,230.55,230.42,5.29897928]
[1734000227239,2.1686,230.48,230.43,7.46797928]
[1734000227438,2.1686,230.48,230.43,2.169]
[1734000228139,2.06,230.5,230.43,2.169]
[1734000229737,4.2285,230.5,230.46,2.1687]
[1734000230941,2.06,230.5,230.46,2.1687]
[1734000231140,2.1685,230.49,230.46,2.1687]
[1734000231640,2.06,230.5,230.43,2.169]
[1734000232141,2.1686,230.48,230.44,2.1689]
[1734000232341,2.06,230.5,230.44,2.1689]
[1734000233745,2.1686,230.48,230.44,2.1689]
[1734000234939,2.1685,230.49,230.46,2.1687]
[1734000236246,2.06,230.5,230.46,2.1687]
[1734000237043,2.06,230.5,230.47,2.1687]
[1734000237941,2.1684,230.51,230.47,2.1687]
[1734000239847,2.06,230.53,230.44,12.81708411]
[1734000240046,2.1685,230.5,230.41,12.81708411]
[1734000240347,2.06,230.53,230.42,5.28407007]
[1734000240546,2.06,230.53,230.41,12.81708411]
[1734000240740,2.1686,230.48,230.45,2.1688]
[1734000241342,2.06,230.53,230.45,2.1688]
[1734000241343,2.1685,230.49,230.45,2.1688]
[1734000241647,2.06,230.53,230.45,2.1688]
[1734000241844,2.1683,230.51,230.45,2.1688]
[1734000242142,2.06,230.53,230.45,2.1688]
[1734000243145,2.1685,230.49,230.45,2.1688]
[1734000243449,2.06,230.53,230.48,8.20364661]
[1734000243948,123.28307864,230.56,230.52,8.20364661]
[1734000244346,2.1679,230.55,230.52,10.37184661]
[1734000245844,2.06,230.58,230.45,8.20364661]
[1734000245845,8.20364661,230.54,230.45,8.20364661]
[1734000246045,8.20364661,230.54,230.41,2.06]
[1734000246046,2.06,230.53,230.41,2.06]
[1734000246248,2.1685,230.5,230.46,2.1687]
[1734000246546,2.1685,230.5,230.45,8.20364661]
[1734000247647,2.1685,230.5,230.47,2.1687]
[1734000248050,2.1686,230.48,230.41,2.06]
[1734000248252,2.1686,230.48,230.44,10.37254661]
[1734000248447,2.1686,230.48,230.44,2.1689]
[1734000249251,2.1686,230.48,230.45,2.1688]
[1734000250059,2.1687,230.47,230.45,8.20364661]
[1734000254948,2.169,230.44,230.4,2.1693]
[1734000255149,2.169,230.44,230.41,5.29060402]
[1734000255449,2.169,230.44,230.4,8.20364661]
[1734000255647,2.169,230.44,230.41,2.1691]
[1734000256550,2.169,230.44,230.42,8.20364661]
[1734000256751,2.1689,230.45,230.42,10.37274661]
[1734000257846,2.06,230.48,230.44,8.20364661]
[1734000257847,2.1687,230.47,230.44,8.20364661]
[1734000258046,2.06,230.48,230.46,8.20364661]
[1734000258447,8.20364661,230.54,230.46,8.20364661]
[1734000258647,2.06,230.53,230.46,8.20364661]
[1734000259455,2.1685,230.49,230.47,5.30514383]
[1734000259655,2.1685,230.49,230.46,10.37234661]
[1734000260152,2.1685,230.49,230.47,5.30858688]
[1734000260357,2.1685,230.49,230.46,10.37234661]
[1734000260651,2.1685,230.49,230.47,5.30858688]
[1734000260856,2.1685,230.49,230.46,10.37234661]
[1734000261156,2.1685,230.49,230.47,5.30860051]
[1734000261353,2.1685,230.49,230.48,5.30860051]
[1734000261553,2.1688,230.46,230.39,5.3999]
[1734000261753,2.06,230.48,230.41,8.20364661]
[1734000262061,2.06,230.48,230.42,5.31181449]
[1734000262252,2.1689,230.45,230.43,5.31181449]
[1734000262455,2.1689,230.45,230.44,5.31181449]
[1734000264457,2.1689,230.45,230.41,10.37284661]
[1734000264656,2.1689,230.45,230.44,5.31837668]
[1734000265260,2.1689,230.45,230.42,5.31822162]
[1734000265662,2.1689,230.45,230.43,5.31822162]
[1734000265861,2.1689,230.45,230.44,5.31822162]
[1734000267453,2.1689,230.45,230.42,2.1691]
[1734000267964,2.1689,230.45,230.44,5.32065161]
[1734000268160,2.1689,230.45,230.43,5.32065161]
[1734000268367,2.1689,230.45,230.44,5.32065161]
[1734000269258,8.20364661,230.46,230.37,8.20364661]
[1734000269464,2.06,230.48,230.38,5.32038722]
[1734000269465,8.20364661,230.44,230.38,5.32038722]
[1734000269765,8.20364661,230.44,230.39,5.32038722]
[1734000269766,2.06,230.43,230.39,5.32038722]
[1734000269963,2.06,230.43,230.4,5.32038722]
[1734000270157,2.1691,230.42,230.41,5.32038722]
[1734000274165,2.1691,230.42,230.41,5.31821606]
[1734000274466,2.06,230.43,230.37,10.37324661]
[1734000274666,2.06,230.43,230.41,5.3177633]
[1734000274965,2.1693,230.41,230.37,10.37324661]
[1734000275269,2.1693,230.41,230.38,5.31776514]
[1734000275464,2.1693,230.4,230.39,5.31776514]
[1734000277368,2.1693,230.4,230.37,10.37324661]
[1734000277565,2.1693,230.4,230.39,5.31610031]
[1734000277870,2.1693,230.4,230.38,5.31610031]
[1734000278063,2.1693,230.4,230.39,5.31610031]
[1734000284080,2.1693,230.4,230.37,10.37324661]
[1734000284778,2.1693,230.4,230.38,5.31381898]
[1734000285675,2.1693,230.4,230.39,5.31381898]
[1734000287385,2.1693,230.4,230.37,10.37324661]
[1734000287585,2.1693,230.4,230.39,5.31397682]
[1734000293883,8.20364661,230.43,230.35,8.20364661]
[1734000294188,2.1695,230.39,230.36,5.3164745]
[1734000294379,2.1695,230.39,230.35,10.37334661]
[1734000294583,8.20364661,230.43,230.37,5.31676302]
[1734000294783,8.20364661,230.43,230.35,10.37334661]
[1734000294784,2.1695,230.38,230.36,5.31676302]
[1734000294987,2.1695,230.38,230.37,5.31676303]
[1734000295584,2.1693,230.41,230.38,2.1695]
[1734000295785,2.1693,230.41,230.39,5.31676303]
[1734000296086,2.1693,230.41,230.4,5.31676303]
[1734000299784,5.26424742,230.45,230.4,5.31676303]
[1734000299983,2.1692,230.42,230.41,5.31676303]
[1734000302990,2.1692,230.42,230.38,2.1695]
[1734000303294,2.1691,230.43,230.41,5.3202412]
[1734000303490,2.1691,230.43,230.4,2.1693]
[1734000303697,2.1691,230.43,230.41,5.3202412]
[1734000303896,2.1691,230.43,230.4,2.1693]
[1734000303897,2.1691,230.43,230.42,5.3202412]
[1734000305996,2.1691,230.43,230.4,2.1693]
[1734000306198,2.1691,230.43,230.39,2.1694]
[1734000306501,2.1691,230.43,230.4,5.32374503]
[1734000306692,2.1692,230.42,230.41,5.32374503]
[1734000307407,10.37284661,230.42,230.41,5.32374503]
[1734000307699,10.37284661,230.42,230.41,2.7073841]
[1734000307896,2.1698,230.36,230.31,2.70269]
[1734000309405,2.1698,230.36,230.32,2.1701]
[1734000313302,2.1698,230.35,230.31,8.20364661]
[1734000313503,8.20364661,230.35,230.27,8.20364661]
[1734000314610,2.1702,230.31,230.27,10.37414661]
[1734000315009,2.06,230.37,230.27,2.1705]
[1734000315010,8.20364661,230.33,230.27,2.1705]
[1734000315208,8.20364661,230.33,230.23,5.1617]
[1734000315209,8.20364661,230.29,230.23,5.1617]
[1734000315410,4.3385,230.42,230.23,1.6651]
[1734000315411,8.20364661,230.27,230.23,1.6651]
[1734000315705,8.20364661,230.27,230.2,2.1712]
[1734000315706,2.1707,230.25,230.2,2.1712]
[1734000315906,2.1707,230.25,230.22,0.47212]
[1734000315907,8.20364661,230.25,230.22,0.47212]
[1734000316612,2.1709,230.23,230.22,0.47212]
[1734000319911,10.37454661,230.23,230.22,0.47212]
[1734000320111,12.43454661,230.23,230.22,0.47212]
[1734000327715,10.26364661,230.23,230.1,3.4873]
[1734000328013,8.20364661,230.17,230.1,3.4873]
[1734000328210,12.43514661,230.17,230.12,2.172]